Cogmind - Beta 11 @@@ ROGUE MODE // 2022.03.29 @ 10:37:59 Player: Happytimes Result: Self-destructed Performance ------------- Evolutions (3) 1500 Regions Visited (8) 1600 Robots Destroyed (48) 240 Value Destroyed (1758) 1758 Prototype IDs (4) 80 Alien Tech Used (0) 0 Bonus (1246) 1246 TOTAL SCORE: 6424 Bonus ------- High Alert Combat Kills 11 Follower Combat Kills 35 Entered Garrisons 400 Used RIF Installer 500 Aligned with FarCom 300 Cogmind --------- Core Integrity 667/700 Matter 107/300 Energy 45/100 System Corruption 0% Temperature Cool (0) Movement Core (250) Ox4 Location -7/Garrison Parts ------- > --- POWER (2) -------- (None) > --- PROPULSION (4) --- Cesium-ion Thruster > --- UTILITY (5) ------ Medium Storage Unit Relay Coupler [NC] (29) Relay Coupler [Swarmer] (45) Relay Coupler [Brawler] (29) > --- WEAPON (2) ------- Remote Datajack > --- INVENTORY (10) --- Propulsion Shielding Relay Coupler [Hunter] (14) Skeleton Box System Restoration Module Plasma Rifle Plasma Rifle Plasma Rifle Improved Datajack Power Maul Scythe Peak State ------------ > --- POWER ------------ (None) > --- PROPULSION ------- Cesium-ion Thruster Cesium-ion Thruster Cesium-ion Thruster > --- UTILITY ---------- Medium Storage Unit Relay Coupler [NC] Relay Coupler [Swarmer] Relay Coupler [Grunt] Relay Coupler [Brawler] > --- WEAPON ----------- Improved Datajack Power Maul > --- INVENTORY -------- Propulsion Shielding Relay Coupler [Hunter] Skeleton Box System Restoration Module Plasma Rifle Plasma Rifle Plasma Rifle EMP Blaster Remote Datajack Scythe [Rating: 31] Favorites ----------- Power Light Nuclear Core Engine Ion Engine Power Core Light Nuclear Core Propulsion Compact Wheel Treads Light Treads Leg Aluminum Leg Wheel Compact Wheel Hover Unit Improved Hover Unit Flight Unit Cesium-ion Thruster Utility Small Storage Unit Device Trap Scanner Storage Small Storage Unit Processor Terrain Scan Processor Hackware Relay Coupler [Grunt] Protection Improved Light Armor Plating Weapon Heavy Mace Energy Gun Heavy Particle Gun Energy Cannon Light EM Pulse Cannon Ballistic Gun Assault Rifle Launcher EMP Blaster Special Weapon Mining Laser Impact Weapon Heavy Mace Slashing Weapon Scythe Special Melee Weapon Improved Datajack Build | -11 -10 -10 -10 -9 -8 -8 -7 -7 ------- Run | Scr Mat Min Exi Min Mat Gar Fac Gar Slots Evolved 6 | . . . . . 4 . 2 . Power 1 | . . . . . 1 . . . Propulsion 2 | . . . . . 1 . 1 . Utility 3 | . . . . . 2 . 1 . Weapon . | . . . . . . . . . Parts Attached 80 | 6 3 1 6 12 24 16 5 7 Power 10 | 1 . . . 3 5 1 . . Engine 6 | 1 . . . 3 1 1 . . Core 4 | . . . . . 4 . . . Reactor . | . . . . . . . . . Propulsion 14 | 2 . . . 3 5 3 1 . Treads 1 | . . . . . 1 . . . Leg 2 | . . . . . 2 . . . Wheel 4 | 2 . . . . 2 . . . Hover 1 | . . . . 1 . . . . Flight 6 | . . . . 2 . 3 1 . Utility 21 | 1 1 . 5 . 5 3 3 3 Device 6 | . . . 4 . 2 . . . Storage 3 | 1 . . 1 . . . 1 . Processor 2 | . 1 . . . . . 1 . Hackware 6 | . . . . . . 2 1 3 Protection 4 | . . . . . 3 1 . . Artifact . | . . . . . . . . . Weapon 35 | 2 2 1 1 6 9 9 1 4 Energy Gun 2 | . . . . . 2 . . . Energy Cannon 6 | . 2 . 1 2 . 1 . . Ballistic Gun 6 | 2 . . . 2 1 1 . . Ballistic Cannon . | . . . . . . . . . Launcher 4 | . . . . 2 . . . 2 Special Weapon 3 | . . . . . 1 1 . 1 Impact Weapon 4 | . . 1 . . 2 . 1 . Slashing Weapon 5 | . . . . . 2 3 . . Piercing Weapon . | . . . . . . . . . Special Melee Weapon 5 | . . . . . 1 3 . 1 Unidentified Prototypes 4 | . . . 2 . 2 . . . Corrupted Parts 2 | . . . . . 2 . . . System Corruption 6 | . . . . . 6 . . . Parts Lost 18 | . . . . 9 4 2 . 3 Power 5 | . . . . 2 2 1 . . Propulsion 6 | . . . . 3 . 1 . 2 Utility 2 | . . . . . 2 . . . Weapon 5 | . . . . 4 . . . 1 Highest Loss Streak 4 | . . . . 4 2 2 . 3 To Critical Strikes . | . . . . . . . . . Average Slot Usage (%) 83 | . 91 100 90 93 71 81 69 74 Engine 7 | . 14 14 14 12 1 6 . . Core 3 | . . . . . 6 4 . . Treads 1 | . . . . . 5 . . . Leg 2 | . . . . . 7 . . . Wheel 12 | . 28 28 28 21 2 9 . . Flight 4 | . . . . . 2 12 23 22 Device 8 | . . . 6 14 13 5 . . Storage 11 | . 14 14 14 14 9 9 7 7 Processor 2 | . 6 14 5 . . . 4 2 Hackware 1 | . . . . . . 4 11 20 Protection 4 | . . . . . 5 13 7 5 Energy Cannon 3 | . 13 23 6 . . 2 . . Ballistic Gun 2 | . 15 . . 4 1 1 . . Launcher 1 | . . . . 6 . . . 2 Impact Weapon 7 | . . 4 14 14 8 1 . 6 Slashing Weapon 2 | . . . . . 5 4 6 . Special Melee Weapon 1 | . . . . . . 3 7 3 Naked Turns . | . . . . . . . . . Heaviest Build 33 | 13 18 18 23 17 27 33 15 18 Greatest Support 26 | 26 26 26 26 26 26 26 15 15 Greatest Overweight (x) 5 | . . . . 3 3 5 . 1 Average Overweight (x) . | . . . . . . . . . Largest Inventory Capacity 10 | 8 8 8 8 8 8 8 10 10 Average Capacity 8 | 6 8 8 8 8 8 8 8 10 Most Carried 10 | 5 3 7 8 8 8 8 9 10 Average Carried 7 | . 1 5 7 7 7 7 8 9 Final Capacity 10 | 8 8 8 8 8 8 8 10 10 Final Carried 10 | . 2 7 8 8 8 8 9 10 Class Distribution -------------------- 70% | Mutant 23% | Scavenger-Mutant 3% | Scavenger-Sprinter Dominant Class ---------------- Mutant | -10/Materials Mutant | -10/Mines Mutant | -10/Exiles Mutant | -9/Mines Mutant | -8/Materials Scavenger-Mutant | -8/Garrison Scavenger-Sprinter | -7/Factory Scavenger-Mutant | -7/Garrison Resources | -11 -10 -10 -10 -9 -8 -8 -7 -7 ----------- Run | Scr Mat Min Exi Min Mat Gar Fac Gar Matter Collected 927 | 241 53 10 66 102 314 123 18 . Remotely . | . . . . . . . . . Salvage Created 1321 | . 140 134 . 278 620 105 44 . Parts 57 | . 3 6 . 18 22 5 3 . Haulers Intercepted 2 | . . . . . 2 . . . Recyclers Shooed . | . . . . . . . . . Parts Field Recycled . | . . . . . . . . . Retrieved Matter . | . . . . . . . . . Parts Self-Destructed . | . . . . . . . . . Prevented . | . . . . . . . . . Kills | -11 -10 -10 -10 -9 -8 -8 -7 -7 ------- Run | Scr Mat Min Exi Min Mat Gar Fac Gar Combat Hostiles Destroyed 32 | . 2 3 . 15 9 3 . . Melee 8 | . . . . 1 6 1 . . Guns 2 | . . . . 1 . 1 . . Cannons 8 | . 2 3 . 2 . 1 . . AOE 6 | . . . . 6 . . . . Classes Destroyed 10 | . 2 2 . . 5 1 . . Worker 7 | . 1 . . 1 3 . 2 . Tunneler 1 | . . . . . 1 . . . Hauler 2 | . . . . . 2 . . . Recycler 2 | . . 1 . . 1 . . . Operator 1 | . . . . . 1 . . . Watcher 3 | . . . . . 3 . . . Swarmer 17 | . . 3 . 11 3 . . . Saboteur 1 | . . . . . . 1 . . Grunt 12 | . 2 . . 4 5 1 . . Sentry 2 | . . . . . 1 1 . . Best Kill Streak 11 | . 3 3 . 4 11 1 2 . Combat Bots Only 4 | . 2 3 . 4 3 1 . . Max Kills in Single Turn 2 | . 1 1 . 2 1 1 1 . Gunslinging . | . . . . . . . . . Exploded 2 | . . . . 2 . . . . Melee 1 | . . . . 1 1 1 . . Uniques/NPCs Destroyed . | . . . . . . . . . Combat | -11 -10 -10 -10 -9 -8 -8 -7 -7 -------- Run | Scr Mat Min Exi Min Mat Gar Fac Gar Damage Taken 1864 | . 104 76 . 567 713 262 . 142 Core 452 | . 43 9 . 123 163 81 . 33 Absorbed by Shields 144 | . . . . . 144 . . . Redirected to Shielding 19 | . . . . . . 19 . . Core Remaining (%) 61 | 100 . . . 30 . 55 . . Volleys Fired 62 | . 6 4 . 18 . 31 . 3 Largest 2 | . 2 2 . 1 . 2 . 1 Hottest 175 | . 112 112 . 56 . 175 . 33 Shots Fired 75 | . 12 8 . 18 . 34 . 3 Gun 10 | . 2 . . 3 . 5 . . Cannon 29 | . 10 8 . 4 . 7 . . Launcher 12 | . . . . 11 . . . 1 Special 24 | . . . . . . 22 . 2 Kinetic 10 | . 2 . . 3 . 5 . . Thermal 29 | . . . . . . 29 . . Explosive 5 | . . . . 5 . . . . Electromagnetic 29 | . 10 8 . 10 . . . 1 Robot Hit Streak 5 | . 5 4 . 1 . 1 . 4 Robot Miss Streak 3 | . 2 2 . 3 . 2 . . Penetration Max . | . . . . . . . . . Secondary Targets . | . . . . . . . . . Shots Hit Robots 91 | . 7 7 . 20 41 11 2 3 Core Hits 36 | . 4 3 . 12 11 3 1 2 Critical Kills 2 | . . . . . 2 . . . Critical Parts Destroyed 5 | . . . . 1 4 . . . Critical Strikes 8 | . . . . 1 7 . . . Smash 7 | . . . . 1 6 . . . Sever 1 | . . . . . 1 . . . Melee Attacks 108 | . . 3 . 29 54 19 2 1 Thermal 7 | . . . . . . 7 . . Impact 69 | . . 3 . 29 34 2 . 1 Slashing 23 | . . . . . 18 3 2 . Piercing . | . . . . . . . . . Sneak Attacks 14 | . . 1 . 1 9 1 2 . Combat Hostiles 1 | . . . . . . 1 . . Follow-up Attacks 4 | . . . . . 4 . . . Damage Inflicted 3889 | . 186 297 . 1156 1835 164 134 117 Guns 26 | . . . . 11 . 15 . . Cannons 339 | . 186 96 . 57 . . . . Explosions 441 | . . . . 324 . . . 117 Melee 3057 | . . 199 . 764 1835 125 134 . Ramming 2 | . . 2 . . . . . . Kinetic 26 | . . . . 11 . 15 . . Thermal 44 | . . . . 20 . 24 . . Explosive 190 | . . . . 190 . . . . Electromagnetic 570 | . 186 96 . 171 . . . 117 Impact 2366 | . . 199 . 764 1403 . . . Slashing 691 | . . . . . 432 125 134 . Piercing . | . . . . . . . . . Highest Corruption 6 | . . 2 2 2 6 6 . . Average Corruption 2 | . . 2 2 2 1 6 . . Corruption Purged . | . . . . . . . . . Corruption Blocked . | . . . . . . . . . Effects 43 | . . 1 4 5 15 18 . . Message Errors 8 | . . . 1 2 4 1 . . Matter Fused 9 | . . . 2 1 1 5 . . Heat Flow Errors 5 | . . 1 . . 2 2 . . Energy Discharges 8 | . . . . . 4 4 . . Data Loss (minor) 6 | . . . 1 2 2 1 . . Data Loss (major) 6 | . . . . . 2 4 . . Misfires 1 | . . . . . . 1 . . Overload Shots . | . . . . . . . . . Overflow Damage 744 | . . 114 . 155 428 20 27 . Projectiles . | . . . . . . . . . Explosions 17 | . . . . 17 . . . . Melee 727 | . . 114 . 138 428 20 27 . Knockbacks 10 | . . 2 . 3 5 . . . Impact 10 | . . 2 . 3 5 . . . Kinetic . | . . . . . . . . . Secondary . | . . . . . . . . . Self-Inflicted Damage 121 | . . 1 . 51 . 55 . 14 Shots 4 | . . . . 2 . 1 . 1 Rammed 1 | . . 1 . . . . . . Targets Rammed 1 | . . 1 . . . . . . Kicked . | . . . . . . . . . Crushed . | . . . . . . . . . Highest Temperature 268 | . 131 164 . 48 268 170 . . Average Temperature 66 | . 71 80 . 23 109 61 . . Received Heat Transfer 610 | . 42 . . 144 316 72 . 36 Siege Activations . | . . . . . . . . . Robots Corrupted 2 | . . . . 2 . . . . Combat Hostiles 2 | . . . . 2 . . . . Parts Fried 22 | . . 2 . 5 15 . . . Impact Corruptions 30 | . . 4 . 8 18 . . . Robots Melted . | . . . . . . . . . Combat Hostiles . | . . . . . . . . . Parts Melted . | . . . . . . . . . Heat Transferred 50 | . . . . . . 50 . . Parts Sabotaged 7 | . . . . . . 7 . . Parts Stolen . | . . . . . . . . . Parts Stripped . | . . . . . . . . . Power Chain Reactions 2 | . . . . 2 . . . . Missiles Intercepted . | . . . . . . . . . Alert | -11 -10 -10 -10 -9 -8 -8 -7 -7 ------- Run | Scr Mat Min Exi Min Mat Gar Fac Gar Peak Influence 449 | . 119 121 . 289 280 449 255 228 Initial 231 | . . 46 . . 92 182 231 178 Average 157 | . 45 115 . 150 77 333 243 209 Maximum Alert Level 2 | . . . . 1 1 2 1 1 Low Security (%) 66 | 100 100 100 . 55 95 20 . 36 Level 1 26 | . . . . 44 4 44 100 63 Level 2 7 | . . . . . . 35 . . Level 3 . | . . . . . . . . . Level 4 . | . . . . . . . . . Level 5 . | . . . . . . . . . High Security . | . . . . . . . . . Max Security . | . . . . . . . . . Squads Dispatched 4 | . 1 1 . . 2 . . . Investigation 1 | . . 1 . . . . . . Extermination . | . . . . . . . . . Reinforcement 3 | . 1 . . . 2 . . . Assault . | . . . . . . . . . Garrison . | . . . . . . . . . Intercept . | . . . . . . . . . Searches Triggered . | . . . . . . . . . Construction Impeded . | . . . . . . . . . Haulers Reinforced . | . . . . . . . . . Active Scanning Responses . | . . . . . . . . . Cargo Convoy Interrupts . | . . . . . . . . . Stealth | -11 -10 -10 -10 -9 -8 -8 -7 -7 --------- Run | Scr Mat Min Exi Min Mat Gar Fac Gar Distress Signals 3 | . 1 . . 1 1 . . . Communications Jammed . | . . . . . . . . . Distress Signals . | . . . . . . . . . Times Spotted 71 | . 9 2 . 13 23 17 . 7 Peak Tracking Total 7 | . 4 2 . 4 4 5 . 7 Tactical Retreats 3 | . 1 . . . 1 1 . . Traps | -11 -10 -10 -10 -9 -8 -8 -7 -7 ------- Run | Scr Mat Min Exi Min Mat Gar Fac Gar Traps Triggered 1 | . . . . . . . . 1 Indirectly . | . . . . . . . . . Trap Hack Attempts . | . . . . . . . . . Triggered . | . . . . . . . . . Disarmed . | . . . . . . . . . Reprogrammed . | . . . . . . . . . Reused . | . . . . . . . . . Traps Extracted . | . . . . . . . . . Installed . | . . . . . . . . . Triggered . | . . . . . . . . . Most Traps Carried 2 | . . . . 2 2 . . . Machines | -11 -10 -10 -10 -9 -8 -8 -7 -7 ---------- Run | Scr Mat Min Exi Min Mat Gar Fac Gar Machines Disabled 11 | . . . . 5 1 4 . 1 Max in Single Turn 3 | . . . . 3 1 2 . 1 Garrison Relay 3 | . . . . . . 2 . 1 Phase Generator 1 | . . . . . . 1 . . Machines Sabotaged . | . . . . . . . . . Garrisons Compromised . | . . . . . . . . . Overloaded Fab Kills . | . . . . . . . . . Hacking | -11 -10 -10 -10 -9 -8 -8 -7 -7 --------- Run | Scr Mat Min Exi Min Mat Gar Fac Gar Machines Accessed 9 | . 1 1 . . 5 . 2 . Terminals 5 | . 1 . . . 3 . 1 . Fabricators . | . . . . . . . . . Repair Stations . | . . . . . . . . . Recycling Units 1 | . . . . . 1 . . . Scanalyzers . | . . . . . . . . . Garrison Access 2 | . . . . . 1 . 1 . Total Hacks 16 | . 1 1 . . 11 . 3 . Successful 12 | . 1 1 . . 7 . 3 . Failed 4 | . . . . . 4 . . . Catastrophic . | . . . . . . . . . Database Lockouts . | . . . . . . . . . Manual 2 | . . . 1 1 . . . . Terminals 12 | . 1 . . . 9 . 2 . Fabricators . | . . . . . . . . . Repair Stations . | . . . . . . . . . Recycling Units 1 | . . . . . 1 . . . Scanalyzers . | . . . . . . . . . Garrison Access 2 | . . . . . 1 . 1 . Terminal Hacks 9 | . 1 1 . . 5 . 2 . Open Door 1 | . . 1 . . . . . . Emergency Access Points 1 | . 1 . . . . . . . Alert Level 1 | . . . . . 1 . . . Locate Traps 1 | . . . . . . . 1 . Recall Reinforcements 1 | . . . . . 1 . . . Hauler Manifests 1 | . . . . . 1 . . . Zone Layout 3 | . . . . . 2 . 1 . Fabricator Hacks . | . . . . . . . . . Repair Station Hacks . | . . . . . . . . . Recycling Unit Hacks 1 | . . . . . 1 . . . Report Inventory 1 | . . . . . 1 . . . Scanalyzer . | . . . . . . . . . Garrison Access Hacks 2 | . . . . . 1 . 1 . Unlock Access 2 | . . . . . 1 . 1 . Unauthorized Hacks . | . . . . . . . . . Terminals . | . . . . . . . . . Fabricators . | . . . . . . . . . Repair Stations . | . . . . . . . . . Recycling Units . | . . . . . . . . . Scanalyzers . | . . . . . . . . . Garrison Access . | . . . . . . . . . Data Cores Recovered . | . . . . . . . . . Used . | . . . . . . . . . Hacking Detections 5 | . . . . . 4 . 1 . Full Trace Events . | . . . . . . . . . Feedback Events . | . . . . . . . . . Feedback Blocked . | . . . . . . . . . Robot Schematics Acquired . | . . . . . . . . . Robots Built . | . . . . . . . . . Authchips . | . . . . . . . . . Time . | . . . . . . . . . Total Robot Build Rating . | . . . . . . . . . Part Schematics Acquired . | . . . . . . . . . Parts Built . | . . . . . . . . . Authchips . | . . . . . . . . . Time . | . . . . . . . . . Total Part Build Rating . | . . . . . . . . . Parts Repaired . | . . . . . . . . . Time . | . . . . . . . . . Parts Recycled . | . . . . . . . . . Recycled Matter . | . . . . . . . . . Retrieved Matter . | . . . . . . . . . Retrieved Components . | . . . . . . . . . Parts Scanalyzed . | . . . . . . . . . Part Schematics Acquired . | . . . . . . . . . Parts Damaged . | . . . . . . . . . Bothacking | -11 -10 -10 -10 -9 -8 -8 -7 -7 ------------ Run | Scr Mat Min Exi Min Mat Gar Fac Gar Used RIF Installer 1 | . . . . . . 1 . . Robots Hacked 6 | . . . . . 1 4 . 1 Non-combat 1 | . . . . . 1 . . . Combat 5 | . . . . . . 4 . 1 Robot Hacks Applied 7 | . . . . . 1 5 . 1 no_distress 1 | . . . . . 1 . . . spike_heat 1 | . . . . . . . . 1 go_dormant 2 | . . . . . . 2 . . formatsys_high 3 | . . . . . . 3 . . Relay Couplers Released 13 | . . . . . . 8 . 5 Machine Destruction 13 | . . . . . . 8 . 5 Attached 6 | . . . . . . 2 1 3 Fabnet Peak Effective % . | . . . . . . . . . Robots Rewired 1 | . . . . . . . 1 . Allies Hacked . | . . . . . . . . . Hacks Repelled . | . . . . . . . . . Allies | -11 -10 -10 -10 -9 -8 -8 -7 -7 -------- Run | Scr Mat Min Exi Min Mat Gar Fac Gar Total Allies 4 | . . . . . . 3 1 . Largest Group 2 | . . . . . . 2 1 1 Highest-Rated Group 32 | . . . . . . 32 16 12 Highest-Rated Ally 16 | . . . . . . 16 16 12 Total Orders . | . . . . . . . . . Ally Attacks 12 | . . . . . . 10 . 2 Total Damage 117 | . . . . . . 91 . 26 Kills 1 | . . . . . . 1 . . Allies Corrupted . | . . . . . . . . . Allies Melted . | . . . . . . . . . Intel | -11 -10 -10 -10 -9 -8 -8 -7 -7 ------- Run | Scr Mat Min Exi Min Mat Gar Fac Gar Robot Analysis Total . | . . . . . . . . . Derelict Logs Recovered 2 | . . . . 2 . . . . Drone Launches . | . . . . . . . . . Drone Recoveries . | . . . . . . . . . Exploration | -11 -10 -10 -10 -9 -8 -8 -7 -7 ------------- Run | Scr Mat Min Exi Min Mat Gar Fac Gar Turns Passed 3311 | 56 140 303 242 689 1040 625 100 116 Spaces Moved 2365 | 55 116 301 253 520 404 392 186 138 Core 41 | 16 . . . 10 14 1 . . Treads 273 | . . . . . 273 . . . Legs 65 | . . . . . 65 . . . Wheels 1433 | 39 116 301 253 492 51 181 . . Hover 4 | . . . . 4 . . . . Flight 549 | . . . . 14 1 210 186 138 Fastest Speed 29 | 50 90 90 90 90 90 32 29 29 Average Speed 102 | 78 90 90 90 98 186 97 29 45 Slowest Speed 300 | 90 90 90 90 200 240 300 29 109 Overloaded Moves . | . . . . . . . . . Propulsion Burnouts . | . . . . . . . . . Robots Hopped 4 | . . . . . . . 4 . Cave-ins Triggered . | . . . . . . . . . Exploration Rate (%) 39 | 3 26 51 61 88 39 60 5 23 Regions Visited 8 Branch Regions 3 Pre-discovered Areas 2 | . . . . 2 . . . . Known Exits Taken 2 | . . . . . 1 . 1 . Unknown Exits Taken 5 | 1 1 1 1 1 . . . . Scrap Searched 7 | . . 3 . 4 . . . . Spaces Dug 19 | . . . . . . 19 . . Terrain Destroyed 132 | . . . . 41 . 91 . . Melee 2 | . . . . . . 2 . . Projectile 17 | . . . . . . 17 . . AOE 113 | . . . . 41 . 72 . . Terrain Rammed . | . . . . . . . . . Walls Destroyed . | . . . . . . . . . Machines Disabled . | . . . . . . . . . Actions | -11 -10 -10 -10 -9 -8 -8 -7 -7 --------- Run | Scr Mat Min Exi Min Mat Gar Fac Gar Total 2969 | 67 138 319 269 628 611 528 224 185 Wait 253 | 2 11 5 . 37 109 60 20 9 Move 2348 | 54 115 300 252 519 403 390 177 138 Hop 4 | . . . . . . . 4 . Pick Up 48 | 5 3 5 4 8 7 6 5 5 Fast Attach 34 | 1 . . 2 3 19 8 1 . Attach 24 | 5 1 . 4 7 3 1 2 1 Detach 4 | . . . 1 1 2 . . . Swap 22 | . 2 1 . 2 2 7 2 6 Drop 41 | . . . 6 4 18 6 3 4 Fire 62 | . 6 4 . 18 . 31 . 3 Melee 102 | . . 3 . 29 48 19 2 1 Ram 1 | . . 1 . . . . . . Kick . | . . . . . . . . . Crush . | . . . . . . . . . Escape Stasis 18 | . . . . . . . . 18 Rewire 8 | . . . . . . . 8 . Trap . | . . . . . . . . . Miscellaneous . | . . . . . . . . . Route ------- -11/Scrapyard -10/Materials -10/Mines (discovered 2 exits: [*Mat] / *Exi) -10/Exiles -9/Mines -8/Materials (discovered 2 exits: *Fac / Gar) -8/Garrison -7/Factory -7/Garrison History --------- Turn | Location | Event 10 | -11/Scrapyard | Discovered new exit (range 15) 57 | -11/Scrapyard | Entered Materials 168 | -10/Materials | Discovered new exit (range 8) 197 | -10/Materials | Entered Mines 222 | -10/Mines | Assembled infested the area 252 | -10/Mines | Met a Derelict shopkeep closing up shop 305 | -10/Mines | Build established: Mutant 425 | -10/Mines | Discovered new exit (range 7) 495 | -10/Mines | Discovered new exit (range 5) 500 | -10/Mines | Entered Exiles 523 | -10/Exiles | Met 8R-AWN 539 | -10/Exiles | Met EX-HEX 564 | -10/Exiles | Met EX-BIN 574 | -10/Exiles | Aligned with FarCom system 575 | -10/Exiles | Given EX-Vault access code 596 | -10/Exiles | Opened EX-Vault 600 | -10/Exiles | Found Prototype Device 603 | -10/Exiles | Identified Skeleton Box 607 | -10/Exiles | Found Prototype Energy Cannon 609 | -10/Exiles | Identified Latent Energy Streamer 645 | -10/Exiles | Warned to stay clear of 0b10 Research branches 676 | -10/Exiles | Met EX-DEC 733 | -10/Exiles | Discovered new exit (range 10) 742 | -10/Exiles | Left Exiles lab with Skeleton Box 742 | -10/Exiles | Entered Mines 858 | -9/Mines | Learned location of 1 exit from Lower Caves 860 | -9/Mines | Excavation squad dispatched 860 | -9/Mines | A large section of the Mines collapsed 1086 | -9/Mines | Core integrity fell below 50% 1110 | -9/Mines | Excavation squad dispatched 1286 | -9/Mines | Found a hidden stash of uninstalled traps 1329 | -9/Mines | Learned location of Storage (-9) 1357 | -9/Mines | Discovered new exit (range 11) 1401 | -9/Mines | Lost 4 parts (1p2n1w) 1413 | -9/Mines | Learned location of Zion (-7) 1431 | -9/Mines | Entered Materials 1431 | -8/Materials | Evolved 4 slots: Power x1, Propulsion x1, Utility x2 2465 | -8/Materials | Discovered new exit (range 10) 2470 | -8/Materials | Identified exit to Garrison 2471 | -8/Materials | Entered Garrison 2476 | -8/Garrison | Installed Relay Interface Framework 2626 | -8/Garrison | Build established: Scavenger-Mutant 2666 | -8/Garrison | Phase Generator disabled 2823 | -8/Garrison | Garrison Relay disabled 2858 | -8/Garrison | Triggered checkpoint 2875 | -8/Garrison | Garrison Relay disabled 3018 | -8/Garrison | Triggered checkpoint 3075 | -8/Garrison | Discovered new exit (range 12) 3096 | -8/Garrison | Entered Factory 3096 | -7/Factory | Accompanied by 1 ally 3096 | -7/Factory | Evolved 2 slots: Propulsion x1, Utility x1 3195 | -7/Factory | Identified exit to Garrison 3196 | -7/Factory | Entered Garrison 3196 | -7/Garrison | Accompanied by 1 ally 3212 | -7/Garrison | Triggered checkpoint 3235 | -7/Garrison | Garrison Relay disabled 3312 | -7/Garrison | Self-destructed Last Messages --------------- 03295_ Field strength at 35. 03296_ Field strength at 30. 03298_ Field strength at 25. 03299_ Field strength at 16. 03299_ Field strength at 20. 03300_ Field strength at 6. 03300_ Field strength at 15. 03301_ Stasis field depleted. 03301_ Field strength at 10. 03302_ Field strength at 5. Garrison Door activated. 03303_ Stasis field depleted. 03304_ Virus 4a destroyed. 03304_ Jacked G-47 Trooper... >>spike_heat Tweaking power source heat flow. 03304_ G-47 Trooper Lgt. Nuclear Core breaks down. 03307_ Jacked L-41 Fighter... 03309_ Cesium-ion Thruster destroyed. 03311_ EMP Blaster destroyed. Map ----- +----------------------------------------------------+ | ?????????????????????????????### #?????######????? | | ?????????????????????????????# #?????# #????? | | ?????????????????????????????# #?????# #????? | | ?????????????????????????????# #?????# #????? | | ?????????????????????????????### #?????# ###????? | | ???????????????????????????????# #?????# #??????? | | ???????????????????????????????# #?????# #??????? | | ???????????????????????????????# #?????# #??????? | | ???????????????????????????????# #?????# #??????? | | ???????????????????????????????# #?????# #??????? | | ???????????????????????????????# #?????# #??????? | | ???????????????????????????????# #?????# #??????? | | ???????????????????????????????# #?????# #??????? | | ???????????????????# ########### ####### #??????? | | ???????????????????# s #??????? | | ???????????????????# s s #??????? | | ???????????????????# ######### ##########??????? | | ??????????????????????????????#s #???????????????? | | ??????????????????????????????# #???????????????? | | ???????????????????#??????????# #???????????????? | | ???????????????????# ?????????# #???????????????? | | ?????????????#C C??# l????????# #????######?????? | | ?????????? ## ## #???????# #????#!!!!#?????? | | ????????? ######## ###### !#?????? | | ????????? bhgl + / #?????? | | ????????? g g @ ######// [#?????? | | ?????????????# ## ###########????# [#?????? | | ???????????????????# ?????????????????######?????? | | ?????????????????????????????????????????????????? | | ?????????????????????????????????????????????????? | | ?????????????????????????????????????????????????? | | ?????????????????????????????????????????????????? | | ?????????????????????????????????????????????????? | | ?????????????????????????????????????????????????? | | ?????????????????????????????????????????????????? | | ?????????????????????????????????????????????????? | | ?????????????????????????????????????????????????? | | ?????????????????????????????????????????????????? | | ?????????????????????????????????????????????????? | | ?????????????????????????????????????????????????? | | ?????????????????????l???????????????????????????? | | ????????????????????b????????????????????????????? | | ?????????????????????????????????????????????????? | | ?????????????????????????????????????????????????? | | ?????????????????????????????????????????????????? | | ?????????????????????????????????????????????????? | | ?????????????????????????????????????????????????? | | ?????????????????????????????????????????????????? | | ?????????????????????????????????????????????????? | | ?????????????????????????????????????????????????? | +----------------------------------------------------+ Best States ------------- Heat Dissipation 34 Energy Generation 23 Energy Capacity 325 Matter Stores 400 Matter Capacity 400 Sight Range 16 Terrain Scan Density 85 Armor Coverage 300 Propulsion Shielding 33 Evasion (%) 64 Melee Accuracy 5 Recoil Reduction 1 Relay Coupler Types 4 Relay Coupler Value 105 Item Schematics ----------------- None Robot Schematics ------------------ None Fabricated ------------ Nothing Alien Tech Used ----------------- None Achievements -------------- None Challenges ------------ None Game ------ Seed AlertZioniteCharger Manual? 0 Play Time 00:36:41 Cumulative 45.5 hours Start 2022.03.29 @ 10:04:27 End 2022.03.29 @ 10:37:59 Sessions 1 Manual Loads 0 Difficulty Rogue Special Mode None Game No. 124 Rogue 124 Adventurer 0 Explorer 0 Win Type - Total 0 Types 0/0/0/0/0/0/0/0/0 Lore% 34 Gallery% 47 Achievement% 36 Wizard Run 0 Options --------- ASCII 0 Keyboard 0 Movement Arrows Keybinds 0 Fullscreen 1 Font 18/SmallcapsGlow Map View 76x50 Tactical HUD 1 Map Filters NONE Filters NONE Steam 1 RUN: 103e17b6-9a00-4897-8aae-9f13ac2b494c